[Event "*** SCC Grand Prix: Titled Tuesday Blitz"]
[Site "Chess.com"]
[Date "2020.08.11"]
[Round "4"]
[White "Sammed_Shete"]
[Black "PIwan"]
[Result "0-1"]
[WhiteElo "2630"]
[BlackElo "2480"]
[TimeControl "180+1"]
[EndTime "10:37:05 PDT"]
[Termination "PIwan won by resignation"]

1. e4 {[%clk 0:03:00.7]} 1... e6 {[%clk 0:02:59.7]} 2. Nf3 {[%clk 0:02:59]} 2...
d5 {[%clk 0:03:00.6]} 3. Nc3 {[%clk 0:02:58.2]} 3... Nf6 {[%clk 0:02:59.9]} 4.
e5 {[%clk 0:02:56.7]} 4... Ne4 {[%clk 0:03:00.1]} 5. Ne2 {[%clk 0:02:53.5]} 5...
Bc5 {[%clk 0:02:59.6]} 6. d4 {[%clk 0:02:53.1]} 6... Be7 {[%clk 0:02:59.5]} 7.
Ng3 {[%clk 0:02:52.9]} 7... c5 {[%clk 0:02:59.3]} 8. Bd3 {[%clk 0:02:52.4]} 8...
Nxg3 {[%clk 0:02:59.1]} 9. fxg3 {[%clk 0:02:53]} 9... cxd4 {[%clk 0:02:49.3]}
10. O-O {[%clk 0:02:52.7]} 10... Nc6 {[%clk 0:02:48.3]} 11. a3 {[%clk
0:02:48.8]} 11... O-O {[%clk 0:02:40.9]} 12. b4 {[%clk 0:02:39.6]} 12... f6
{[%clk 0:02:39.3]} 13. Qe2 {[%clk 0:02:34.2]} 13... fxe5 {[%clk 0:02:15]} 14.
Nxe5 {[%clk 0:02:30.2]} 14... Rxf1+ {[%clk 0:02:13.8]} 15. Kxf1 {[%clk
0:02:28.3]} 15... Nxe5 {[%clk 0:01:59.6]} 16. Qxe5 {[%clk 0:02:29.2]} 16... Bf6
{[%clk 0:02:00.1]} 17. Qh5 {[%clk 0:01:53.3]} 17... g6 {[%clk 0:02:00]} 18. Qh6
{[%clk 0:01:53]} 18... e5 {[%clk 0:01:54.2]} 19. Kg1 {[%clk 0:01:46.6]} 19... e4
{[%clk 0:01:51.9]} 20. Bf1 {[%clk 0:01:46.7]} 20... d3 {[%clk 0:01:50.3]} 21.
Ra2 {[%clk 0:01:46.7]} 21... Qb6+ {[%clk 0:01:29.7]} 22. Be3 {[%clk 0:01:39.7]}
22... Bd4 {[%clk 0:01:13.8]} 23. Kf2 {[%clk 0:01:39.2]} 23... Bg4 {[%clk
0:01:12.6]} 24. c3 {[%clk 0:01:14.3]} 24... Bxe3+ {[%clk 0:01:10.7]} 0-1

[Event "*** SCC Grand Prix: Titled Tuesday Blitz"]
[Site "Chess.com"]
[Date "2020.08.11"]
[Round "4"]
[White "Sanyura"]
[Black "Margarita2907"]
[Result "1-0"]
[WhiteElo "2385"]
[BlackElo "2100"]
[TimeControl "180+1"]
[EndTime "10:37:05 PDT"]
[Termination "Sanyura won by resignation"]

1. e4 {[%clk 0:02:58]} 1... c5 {[%clk 0:02:59.4]} 2. Nf3 {[%clk 0:02:55.4]} 2...
d6 {[%clk 0:02:59.4]} 3. d4 {[%clk 0:02:56]} 3... cxd4 {[%clk 0:02:59.9]} 4.
Nxd4 {[%clk 0:02:56.9]} 4... Nf6 {[%clk 0:03:00]} 5. Nc3 {[%clk 0:02:54.9]} 5...
a6 {[%clk 0:02:59.4]} 6. g3 {[%clk 0:02:52.7]} 6... e5 {[%clk 0:02:55.3]} 7. Nb3
{[%clk 0:02:52.9]} 7... Be7 {[%clk 0:02:55.6]} 8. Bg2 {[%clk 0:02:53.1]} 8...
O-O {[%clk 0:02:55.2]} 9. O-O {[%clk 0:02:52.5]} 9... Nbd7 {[%clk 0:02:54.5]}
10. a4 {[%clk 0:02:51.4]} 10... b6 {[%clk 0:02:53.6]} 11. Nd5 {[%clk 0:02:49.7]}
11... Bb7 {[%clk 0:02:49.9]} 12. Be3 {[%clk 0:02:48.8]} 12... Nxd5 {[%clk
0:02:45.7]} 13. exd5 {[%clk 0:02:48.1]} 13... f5 {[%clk 0:02:43]} 14. f4 {[%clk
0:02:48]} 14... Nc5 {[%clk 0:01:45.9]} 15. fxe5 {[%clk 0:02:42]} 15... Nxb3
{[%clk 0:01:42.2]} 16. cxb3 {[%clk 0:02:42.9]} 16... Bg5 {[%clk 0:00:55]} 17.
Bxg5 {[%clk 0:02:25.3]} 17... Qxg5 {[%clk 0:00:54.4]} 18. e6 {[%clk 0:02:19.7]}
18... f4 {[%clk 0:00:48.1]} 19. Qd2 {[%clk 0:02:14.8]} 19... Rf5 {[%clk
0:00:26.4]} 20. Rxf4 {[%clk 0:02:11.7]} 20... Bxd5 {[%clk 0:00:18.8]} 21. Raf1
{[%clk 0:02:07.3]} 21... Bxg2 {[%clk 0:00:17.3]} 22. Qxg2 {[%clk 0:02:06.5]}
22... Rxf4 {[%clk 0:00:16.1]} 23. Qxa8+ {[%clk 0:02:05.9]} 1-0

[Event "*** SCC Grand Prix: Titled Tuesday Blitz"]
[Site "Chess.com"]
[Date "2020.08.11"]
[Round "4"]
[White "WonderChampion"]
[Black "Roza_Idrisova"]
[Result "1-0"]
[WhiteElo "1983"]
[BlackElo "2212"]
[TimeControl "180+1"]
[EndTime "10:37:08 PDT"]
[Termination "WonderChampion won by checkmate"]

1. d4 {[%clk 0:03:00.9]} 1... d5 {[%clk 0:02:59.8]} 2. Bg5 {[%clk 0:02:58.5]}
2... c6 {[%clk 0:02:59.5]} 3. Nf3 {[%clk 0:02:45.6]} 3... Bf5 {[%clk 0:02:59.1]}
4. e3 {[%clk 0:02:41.8]} 4... Qb6 {[%clk 0:02:58.5]} 5. Qc1 {[%clk 0:02:39]}
5... Nd7 {[%clk 0:02:58]} 6. c4 {[%clk 0:02:36.3]} 6... e6 {[%clk 0:02:55.4]} 7.
Nc3 {[%clk 0:02:34.5]} 7... h6 {[%clk 0:02:52.8]} 8. Bf4 {[%clk 0:02:33.5]} 8...
Ngf6 {[%clk 0:02:51.5]} 9. Be2 {[%clk 0:02:26.4]} 9... Bb4 {[%clk 0:02:49]} 10.
O-O {[%clk 0:02:23.4]} 10... O-O {[%clk 0:02:48.4]} 11. c5 {[%clk 0:02:14.7]}
11... Qd8 {[%clk 0:02:47.8]} 12. a3 {[%clk 0:02:08]} 12... Ba5 {[%clk
0:02:47.5]} 13. b4 {[%clk 0:02:05.7]} 13... Bc7 {[%clk 0:02:47.4]} 14. Bg3
{[%clk 0:02:05.8]} 14... Re8 {[%clk 0:02:46.8]} 15. b5 {[%clk 0:02:02.5]} 15...
e5 {[%clk 0:02:43.8]} 16. dxe5 {[%clk 0:01:53.3]} 16... Nxe5 {[%clk 0:02:43]}
17. Nd4 {[%clk 0:01:53.4]} 17... Bd7 {[%clk 0:02:38.7]} 18. Rb1 {[%clk
0:01:50.5]} 18... Ng6 {[%clk 0:02:18.9]} 19. a4 {[%clk 0:01:40.5]} 19... Bxg3
{[%clk 0:02:17.6]} 20. hxg3 {[%clk 0:01:40.8]} 20... Qe7 {[%clk 0:01:49.4]} 21.
Na2 {[%clk 0:01:31.1]} 21... Ne4 {[%clk 0:01:46.3]} 22. bxc6 {[%clk 0:01:20.4]}
22... Bxc6 {[%clk 0:01:40.5]} 23. Nf5 {[%clk 0:01:02.4]} 23... Qxc5 {[%clk
0:01:30.9]} 24. Qb2 {[%clk 0:01:00.8]} 24... Qa5 {[%clk 0:01:19.3]} 25. Qxg7#
{[%clk 0:00:58.6]} 1-0

[Event "*** SCC Grand Prix: Titled Tuesday Blitz"]
[Site "Chess.com"]
[Date "2020.08.11"]
[Round "4"]
[White "teacher4chess"]
[Black "Alopekos"]
[Result "1-0"]
[WhiteElo "2052"]
[BlackElo "2280"]
[TimeControl "180+1"]
[EndTime "10:37:09 PDT"]
[Termination "teacher4chess won on time"]

1. d4 {[%clk 0:03:00.6]} 1... Nf6 {[%clk 0:02:50.4]} 2. Nf3 {[%clk 0:02:59.9]}
2... e6 {[%clk 0:02:49.6]} 3. Bg5 {[%clk 0:02:58.9]} 3... Be7 {[%clk 0:00:57.1]}
4. Bxf6 {[%clk 0:02:57.3]} 4... Bxf6 {[%clk 0:00:56.5]} 5. e4 {[%clk 0:02:56.9]}
5... d5 {[%clk 0:00:54.7]} 6. e5 {[%clk 0:02:57.1]} 6... Be7 {[%clk 0:00:55.1]}
7. Bd3 {[%clk 0:02:57.4]} 7... c5 {[%clk 0:00:56]} 8. c3 {[%clk 0:02:57.7]} 8...
Qb6 {[%clk 0:00:53.2]} 9. Qc2 {[%clk 0:02:33.6]} 9... Nc6 {[%clk 0:00:38.2]} 10.
dxc5 {[%clk 0:02:26.6]} 10... Bxc5 {[%clk 0:00:38.1]} 11. O-O {[%clk 0:02:26.9]}
11... h6 {[%clk 0:00:29.2]} 12. Nbd2 {[%clk 0:02:16.7]} 12... Bd7 {[%clk
0:00:28.2]} 13. Nb3 {[%clk 0:02:11.7]} 13... Be7 {[%clk 0:00:27.2]} 14. a4
{[%clk 0:01:59.9]} 1-0

[Event "*** SCC Grand Prix: Titled Tuesday Blitz"]
[Site "Chess.com"]
[Date "2020.08.11"]
[Round "4"]
[White "KaspMagAlpha"]
[Black "WiktoriaPOL"]
[Result "0-1"]
[WhiteElo "2195"]
[BlackElo "1872"]
[TimeControl "180+1"]
[EndTime "10:37:21 PDT"]
[Termination "WiktoriaPOL won by checkmate"]

1. d4 {[%clk 0:03:00.9]} 1... Nf6 {[%clk 0:02:59.8]} 2. c4 {[%clk 0:03:00.6]}
2... g6 {[%clk 0:02:59.8]} 3. Nf3 {[%clk 0:03:00.1]} 3... Bg7 {[%clk 0:02:59.4]}
4. g3 {[%clk 0:03:00.2]} 4... O-O {[%clk 0:02:56.3]} 5. Bg2 {[%clk 0:03:00.3]}
5... d6 {[%clk 0:02:56.5]} 6. O-O {[%clk 0:03:00]} 6... Bg4 {[%clk 0:02:55.1]}
7. Nc3 {[%clk 0:02:59.7]} 7... Nc6 {[%clk 0:02:47.4]} 8. h3 {[%clk 0:02:59.2]}
8... Bxf3 {[%clk 0:02:46.9]} 9. Bxf3 {[%clk 0:02:59.2]} 9... Nd7 {[%clk
0:02:37.6]} 10. e3 {[%clk 0:02:53.1]} 10... e5 {[%clk 0:02:35.9]} 11. d5 {[%clk
0:02:48.1]} 11... Ne7 {[%clk 0:02:34.2]} 12. e4 {[%clk 0:02:39.5]} 12... f5
{[%clk 0:02:28]} 13. Be3 {[%clk 0:02:36.8]} 13... f4 {[%clk 0:02:16]} 14. gxf4
{[%clk 0:02:34.7]} 14... exf4 {[%clk 0:02:16.9]} 15. Bd4 {[%clk 0:02:31.4]}
15... Ne5 {[%clk 0:02:15.7]} 16. Bg4 {[%clk 0:02:24.4]} 16... Nxg4 {[%clk
0:02:02.6]} 17. hxg4 {[%clk 0:02:20]} 17... f3 {[%clk 0:01:56]} 18. Bxg7 {[%clk
0:02:14.1]} 18... Kxg7 {[%clk 0:01:56.9]} 19. Qd4+ {[%clk 0:02:02.8]} 19... Kg8
{[%clk 0:01:53.8]} 20. Rfd1 {[%clk 0:01:12.9]} 20... Nc6 {[%clk 0:01:16.5]} 21.
dxc6 {[%clk 0:00:51.7]} 21... Qh4 {[%clk 0:01:15.1]} 22. Kf1 {[%clk 0:00:43]}
22... Qh1# {[%clk 0:01:13.4]} 0-1

[Event "*** SCC Grand Prix: Titled Tuesday Blitz"]
[Site "Chess.com"]
[Date "2020.08.11"]
[Round "4"]
[White "tvjosue"]
[Black "Evgeny81"]
[Result "1-0"]
[WhiteElo "2525"]
[BlackElo "2713"]
[TimeControl "180+1"]
[EndTime "10:37:39 PDT"]
[Termination "tvjosue won by resignation"]

1. d4 {[%clk 0:03:00.9]} 1... Nf6 {[%clk 0:03:00.1]} 2. Nf3 {[%clk 0:03:01]}
2... d5 {[%clk 0:02:59.9]} 3. c3 {[%clk 0:03:00]} 3... Bf5 {[%clk 0:02:57.5]} 4.
Qb3 {[%clk 0:02:59.7]} 4... Qc8 {[%clk 0:02:55.8]} 5. Bf4 {[%clk 0:02:58.8]}
5... e6 {[%clk 0:02:55.3]} 6. Nbd2 {[%clk 0:02:59.2]} 6... Nbd7 {[%clk
0:02:54.3]} 7. Rc1 {[%clk 0:02:58.5]} 7... h6 {[%clk 0:02:52.7]} 8. e3 {[%clk
0:02:58.1]} 8... Be7 {[%clk 0:02:50.8]} 9. c4 {[%clk 0:02:58.1]} 9... c6 {[%clk
0:02:50]} 10. h3 {[%clk 0:02:57.8]} 10... O-O {[%clk 0:02:49.5]} 11. Be2 {[%clk
0:02:56.2]} 11... Bd8 {[%clk 0:02:46.6]} 12. O-O {[%clk 0:02:18.5]} 12... Bc7
{[%clk 0:02:45.8]} 13. Bxc7 {[%clk 0:02:18.1]} 13... Qxc7 {[%clk 0:02:46.7]} 14.
Qc3 {[%clk 0:02:15.6]} 14... Rfe8 {[%clk 0:02:38.1]} 15. b4 {[%clk 0:02:11.9]}
15... Ne4 {[%clk 0:02:31.6]} 16. Qb2 {[%clk 0:02:10.1]} 16... Nxd2 {[%clk
0:02:29.2]} 17. Nxd2 {[%clk 0:02:09.9]} 17... Qd6 {[%clk 0:02:22.2]} 18. a4
{[%clk 0:02:05.5]} 18... a5 {[%clk 0:02:14.7]} 19. b5 {[%clk 0:02:04.8]} 19...
c5 {[%clk 0:02:14.2]} 20. cxd5 {[%clk 0:02:03.6]} 20... exd5 {[%clk 0:02:11.7]}
21. dxc5 {[%clk 0:01:58.8]} 21... Nxc5 {[%clk 0:02:12.6]} 22. Qa3 {[%clk
0:01:58.6]} 22... b6 {[%clk 0:02:10.5]} 23. Nf3 {[%clk 0:01:59]} 23... Qg6
{[%clk 0:01:58.1]} 24. Nh4 {[%clk 0:01:49]} 24... Qf6 {[%clk 0:01:58.2]} 25.
Nxf5 {[%clk 0:01:49.5]} 25... Qxf5 {[%clk 0:01:59.1]} 26. Rfd1 {[%clk
0:01:46.8]} 26... Rac8 {[%clk 0:01:46.6]} 27. Bg4 {[%clk 0:01:45.8]} 27... Qe5
{[%clk 0:01:44.6]} 28. Bxc8 {[%clk 0:01:44.5]} 28... Rxc8 {[%clk 0:01:45.5]} 29.
Rd4 {[%clk 0:01:43.5]} 29... Rd8 {[%clk 0:01:40.5]} 30. Rxc5 {[%clk 0:01:42.6]}
30... bxc5 {[%clk 0:01:40]} 31. Qxc5 {[%clk 0:01:43.5]} 31... Qf5 {[%clk
0:01:37.3]} 32. e4 {[%clk 0:01:43.4]} 32... Qe5 {[%clk 0:01:22.6]} 33. Rxd5
{[%clk 0:01:35.8]} 33... Rxd5 {[%clk 0:01:17.8]} 34. Qxd5 {[%clk 0:01:36.7]}
34... Qa1+ {[%clk 0:01:17.9]} 35. Kh2 {[%clk 0:01:36.5]} 35... Qxa4 {[%clk
0:01:16.7]} 36. b6 {[%clk 0:01:36.8]} 36... Qb4 {[%clk 0:01:11.2]} 37. b7 {[%clk
0:01:35.8]} 37... Qb6 {[%clk 0:01:07]} 38. Qd7 {[%clk 0:01:32.4]} 38... Kh7
{[%clk 0:00:58.6]} 39. Qf5+ {[%clk 0:01:31.5]} 39... Kg8 {[%clk 0:00:57.6]} 40.
Qc8+ {[%clk 0:01:31.2]} 1-0

[Event "*** SCC Grand Prix: Titled Tuesday Blitz"]
[Site "Chess.com"]
[Date "2020.08.11"]
[Round "4"]
[White "anskam"]
[Black "GoldenShare"]
[Result "0-1"]
[WhiteElo "1537"]
[BlackElo "2504"]
[TimeControl "180+1"]
[EndTime "10:37:45 PDT"]
[Termination "GoldenShare won by checkmate"]

1. e4 {[%clk 0:03:00.3]} 1... c5 {[%clk 0:02:59.7]} 2. Nf3 {[%clk 0:02:58.9]}
2... d6 {[%clk 0:03:00]} 3. d4 {[%clk 0:02:57.5]} 3... cxd4 {[%clk 0:03:00.9]}
4. Nxd4 {[%clk 0:02:56.7]} 4... Nf6 {[%clk 0:03:01.3]} 5. Nc3 {[%clk 0:02:52.3]}
5... Nc6 {[%clk 0:03:01.3]} 6. Be3 {[%clk 0:02:49.5]} 6... Ng4 {[%clk
0:02:59.6]} 7. Bc1 {[%clk 0:02:48]} 7... Qb6 {[%clk 0:02:55.2]} 8. Nce2 {[%clk
0:02:17.1]} 8... e5 {[%clk 0:02:36.4]} 9. h3 {[%clk 0:01:56.5]} 9... Nxf2 {[%clk
0:02:21.9]} 10. Kxf2 {[%clk 0:01:54.4]} 10... exd4 {[%clk 0:02:22.4]} 11. Qd3
{[%clk 0:01:50.3]} 11... Be6 {[%clk 0:02:14.9]} 12. b3 {[%clk 0:01:47.4]} 12...
d5 {[%clk 0:01:56.7]} 13. exd5 {[%clk 0:01:42.5]} 13... Nb4 {[%clk 0:01:55.5]}
14. Bb2 {[%clk 0:01:43.4]} 14... Nxd3+ {[%clk 0:01:54.5]} 15. cxd3 {[%clk
0:01:42]} 15... Bxd5 {[%clk 0:01:53.5]} 16. Bxd4 {[%clk 0:01:39]} 16... Bc5
{[%clk 0:01:53.6]} 17. Bxc5 {[%clk 0:01:35.3]} 17... Qxc5+ {[%clk 0:01:54.5]}
18. d4 {[%clk 0:01:35]} 18... Qd6 {[%clk 0:01:54.8]} 19. Rg1 {[%clk 0:01:28]}
19... O-O {[%clk 0:01:54.3]} 20. g3 {[%clk 0:01:26.3]} 20... Rfe8 {[%clk
0:01:54.3]} 21. Nf4 {[%clk 0:01:23.8]} 21... Rac8 {[%clk 0:01:48.5]} 22. Bd3
{[%clk 0:01:21.3]} 22... Be4 {[%clk 0:01:43.8]} 23. Bc4 {[%clk 0:01:10.7]} 23...
Qxd4+ {[%clk 0:01:43.7]} 24. Kf1 {[%clk 0:01:06.2]} 24... Qxa1+ {[%clk
0:01:43.6]} 25. Kf2 {[%clk 0:01:00.6]} 25... Qd4+ {[%clk 0:01:43.3]} 26. Kf1
{[%clk 0:00:58.6]} 26... Rxc4 {[%clk 0:01:42.4]} 27. bxc4 {[%clk 0:00:57.2]}
27... Bd3+ {[%clk 0:01:43.3]} 28. Kg2 {[%clk 0:00:56.4]} 28... Qb2+ {[%clk
0:01:41.9]} 29. Kf3 {[%clk 0:00:51]} 29... Be4+ {[%clk 0:01:37.3]} 30. Kg4
{[%clk 0:00:47.4]} 30... f5+ {[%clk 0:01:37.5]} 31. Kh4 {[%clk 0:00:37.2]} 31...
Qf6+ {[%clk 0:01:36]} 32. Kh5 {[%clk 0:00:31]} 32... Qh6# {[%clk 0:01:36.5]} 0-1

[Event "*** SCC Grand Prix: Titled Tuesday Blitz"]
[Site "Chess.com"]
[Date "2020.08.11"]
[Round "4"]
[White "AlanZhang"]
[Black "Lagravesamuell"]
[Result "0-1"]
[WhiteElo "2179"]
[BlackElo "2606"]
[TimeControl "180+1"]
[EndTime "10:37:47 PDT"]
[Termination "Lagravesamuell won by resignation"]

1. e4 {[%clk 0:03:00.9]} 1... Nf6 {[%clk 0:02:57.1]} 2. e5 {[%clk 0:03:00.5]}
2... Nd5 {[%clk 0:02:56.2]} 3. d4 {[%clk 0:03:01.1]} 3... d6 {[%clk 0:02:56.2]}
4. Nf3 {[%clk 0:03:00.5]} 4... g6 {[%clk 0:02:56.1]} 5. Be2 {[%clk 0:02:58.3]}
5... Bg7 {[%clk 0:02:55.9]} 6. exd6 {[%clk 0:02:57.6]} 6... cxd6 {[%clk
0:02:56.4]} 7. O-O {[%clk 0:02:57.7]} 7... O-O {[%clk 0:02:56.4]} 8. c4 {[%clk
0:02:57.6]} 8... Nb6 {[%clk 0:02:56]} 9. Nc3 {[%clk 0:02:57.6]} 9... Bg4 {[%clk
0:02:53.4]} 10. b3 {[%clk 0:02:50.9]} 10... d5 {[%clk 0:02:48.6]} 11. c5 {[%clk
0:02:37]} 11... Nc8 {[%clk 0:02:48]} 12. Bf4 {[%clk 0:02:35.2]} 12... Nc6 {[%clk
0:02:46.9]} 13. Nb5 {[%clk 0:01:36.3]} 13... a6 {[%clk 0:02:38.8]} 14. Nc3
{[%clk 0:00:26]} 14... Bxf3 {[%clk 0:02:30.1]} 15. Bxf3 {[%clk 0:00:26.9]} 15...
e6 {[%clk 0:02:30.7]} 16. Be3 {[%clk 0:00:23.4]} 16... N8e7 {[%clk 0:02:30.7]}
17. g4 {[%clk 0:00:17.3]} 17... f5 {[%clk 0:02:27.7]} 18. Ne2 {[%clk 0:00:10.9]}
18... fxg4 {[%clk 0:02:21.4]} 19. Bxg4 {[%clk 0:00:11]} 19... Nf5 {[%clk
0:02:21.8]} 20. Bxf5 {[%clk 0:00:06.8]} 20... Rxf5 {[%clk 0:02:21]} 21. f4
{[%clk 0:00:05]} 21... Qh4 {[%clk 0:02:14.4]} 22. Ng3 {[%clk 0:00:04.8]} 22...
Rf7 {[%clk 0:02:12.6]} 23. Qd3 {[%clk 0:00:04.4]} 23... Raf8 {[%clk 0:02:11.8]}
24. Rae1 {[%clk 0:00:03.4]} 24... Bh6 {[%clk 0:02:03.2]} 25. Rf2 {[%clk
0:00:02.6]} 25... Bxf4 {[%clk 0:02:01.4]} 26. Bxf4 {[%clk 0:00:02.6]} 26... Rxf4
{[%clk 0:02:01]} 27. Rxf4 {[%clk 0:00:01.8]} 27... Qxf4 {[%clk 0:01:57.7]} 28.
Rf1 {[%clk 0:00:01.4]} 28... Qxd4+ {[%clk 0:01:55.8]} 29. Qxd4 {[%clk
0:00:02.3]} 29... Nxd4 {[%clk 0:01:56.6]} 30. Rxf8+ {[%clk 0:00:02.2]} 30...
Kxf8 {[%clk 0:01:57.5]} 31. Kf2 {[%clk 0:00:02.6]} 31... Ke7 {[%clk 0:01:56.9]}
32. Ke3 {[%clk 0:00:02.8]} 32... Nc6 {[%clk 0:01:54.1]} 33. Kd3 {[%clk
0:00:02.8]} 33... e5 {[%clk 0:01:54]} 0-1

[Event "*** SCC Grand Prix: Titled Tuesday Blitz"]
[Site "Chess.com"]
[Date "2020.08.11"]
[Round "4"]
[White "BjarkeSahl"]
[Black "AlexSuv"]
[Result "0-1"]
[WhiteElo "2284"]
[BlackElo "2500"]
[TimeControl "180+1"]
[EndTime "10:37:48 PDT"]
[Termination "AlexSuv won on time"]

1. e4 {[%clk 0:01:53.8]} 1... c5 {[%clk 0:02:59.4]} 2. Nf3 {[%clk 0:01:52.1]}
2... e6 {[%clk 0:02:59.9]} 3. c3 {[%clk 0:01:50]} 3... Nf6 {[%clk 0:02:59.7]} 4.
e5 {[%clk 0:01:49.1]} 4... Nd5 {[%clk 0:03:00.3]} 5. d4 {[%clk 0:01:49.8]} 5...
cxd4 {[%clk 0:03:01.2]} 6. cxd4 {[%clk 0:01:50.3]} 6... d6 {[%clk 0:03:01.8]} 7.
Nc3 {[%clk 0:01:38.6]} 7... Nxc3 {[%clk 0:03:01.3]} 8. bxc3 {[%clk 0:01:38]}
8... Qc7 {[%clk 0:03:02]} 9. Bd2 {[%clk 0:01:22.8]} 9... Nd7 {[%clk 0:03:02.5]}
10. exd6 {[%clk 0:01:20.4]} 10... Bxd6 {[%clk 0:03:03.4]} 11. Bd3 {[%clk
0:01:17.1]} 11... b6 {[%clk 0:03:03.9]} 12. O-O {[%clk 0:01:17.4]} 12... Bb7
{[%clk 0:03:04.4]} 13. Re1 {[%clk 0:01:12.6]} 13... O-O {[%clk 0:03:04.1]} 14.
Ng5 {[%clk 0:00:25.2]} 14... h6 {[%clk 0:02:57.7]} 15. Ne4 {[%clk 0:00:25.5]}
15... Bxh2+ {[%clk 0:02:55.2]} 16. Kh1 {[%clk 0:00:25.8]} 16... Bf4 {[%clk
0:02:55.8]} 17. Be3 {[%clk 0:00:19.3]} 17... f5 {[%clk 0:02:42]} 18. Nd2 {[%clk
0:00:15.1]} 18... Rae8 {[%clk 0:02:41.7]} 19. Nc4 {[%clk 0:00:12]} 19... Bxe3
{[%clk 0:02:22.2]} 20. Rxe3 {[%clk 0:00:11.7]} 20... f4 {[%clk 0:02:22.6]} 21.
Rh3 {[%clk 0:00:11.4]} 21... f3 {[%clk 0:02:19.8]} 22. g3 {[%clk 0:00:11.3]}
22... e5 {[%clk 0:02:17.2]} 23. dxe5 {[%clk 0:00:10.7]} 23... Nxe5 {[%clk
0:02:18.1]} 24. Nxe5 {[%clk 0:00:11]} 24... Qxe5 {[%clk 0:02:17.4]} 25. Qb3+
{[%clk 0:00:10.7]} 25... Kh8 {[%clk 0:02:15]} 26. Rf1 {[%clk 0:00:09]} 26... Qe6
{[%clk 0:02:10.3]} 27. Qxe6 {[%clk 0:00:07.2]} 27... Rxe6 {[%clk 0:02:11.2]} 28.
Rh4 {[%clk 0:00:07.8]} 28... Rc8 {[%clk 0:02:08.5]} 29. c4 {[%clk 0:00:07.6]}
29... Rd8 {[%clk 0:02:07.9]} 30. Bf5 {[%clk 0:00:06.6]} 30... Re5 {[%clk
0:02:04.2]} 31. Bc2 {[%clk 0:00:03.9]} 31... Rd2 {[%clk 0:02:04]} 0-1

[Event "*** SCC Grand Prix: Titled Tuesday Blitz"]
[Site "Chess.com"]
[Date "2020.08.11"]
[Round "4"]
[White "natelleka"]
[Black "MF1966Idrisov"]
[Result "0-1"]
[WhiteElo "2092"]
[BlackElo "2381"]
[TimeControl "180+1"]
[EndTime "10:37:53 PDT"]
[Termination "MF1966Idrisov won by checkmate"]

1. e4 {[%clk 0:03:00.8]} 1... c5 {[%clk 0:02:59.7]} 2. Nf3 {[%clk 0:03:00.9]}
2... d6 {[%clk 0:02:59.8]} 3. d4 {[%clk 0:03:00.8]} 3... cxd4 {[%clk 0:02:59.8]}
4. Nxd4 {[%clk 0:03:01.2]} 4... a6 {[%clk 0:02:59.5]} 5. Nc3 {[%clk 0:02:55.7]}
5... g6 {[%clk 0:02:49.8]} 6. Be2 {[%clk 0:02:54.2]} 6... Bg7 {[%clk 0:02:47.3]}
7. O-O {[%clk 0:02:54]} 7... Nc6 {[%clk 0:02:45.7]} 8. Nb3 {[%clk 0:02:54.1]}
8... Nf6 {[%clk 0:02:44.8]} 9. Re1 {[%clk 0:02:53.3]} 9... O-O {[%clk
0:02:41.9]} 10. Bf1 {[%clk 0:02:53.3]} 10... b5 {[%clk 0:02:38.2]} 11. Bg5
{[%clk 0:02:48.9]} 11... Bb7 {[%clk 0:02:37.5]} 12. Nd5 {[%clk 0:02:43.6]} 12...
Re8 {[%clk 0:02:21.9]} 13. Nxf6+ {[%clk 0:02:32.2]} 13... exf6 {[%clk
0:02:20.8]} 14. Bh4 {[%clk 0:02:31.1]} 14... Qb6 {[%clk 0:02:12.2]} 15. Qd2
{[%clk 0:02:15.2]} 15... Ne5 {[%clk 0:02:10.7]} 16. Qa5 {[%clk 0:01:40.2]} 16...
Qa7 {[%clk 0:01:48.3]} 17. Rad1 {[%clk 0:01:05.9]} 17... Nc4 {[%clk 0:01:43.6]}
18. Qc7 {[%clk 0:00:28.4]} 18... Rac8 {[%clk 0:01:30.9]} 19. Qd7 {[%clk
0:00:26.1]} 19... Qb6 {[%clk 0:01:19.8]} 20. Bxc4 {[%clk 0:00:17.8]} 20... bxc4
{[%clk 0:01:19.3]} 21. Rxd6 {[%clk 0:00:17.4]} 21... Qb4 {[%clk 0:01:17.2]} 22.
Nd4 {[%clk 0:00:13.6]} 22... Qxe1# {[%clk 0:01:16.4]} 0-1

[Event "*** SCC Grand Prix: Titled Tuesday Blitz"]
[Site "Chess.com"]
[Date "2020.08.11"]
[Round "4"]
[White "praveenb2002"]
[Black "warmoatmeal"]
[Result "1-0"]
[WhiteElo "2742"]
[BlackElo "2340"]
[TimeControl "180+1"]
[EndTime "10:37:55 PDT"]
[Termination "praveenb2002 won by resignation"]

1. d4 {[%clk 0:03:00.9]} 1... Nf6 {[%clk 0:02:59.7]} 2. c4 {[%clk 0:02:55.2]}
2... e6 {[%clk 0:02:58.9]} 3. Nc3 {[%clk 0:02:55.1]} 3... Bb4 {[%clk 0:02:58.1]}
4. Qc2 {[%clk 0:02:55.2]} 4... d6 {[%clk 0:02:54]} 5. a3 {[%clk 0:02:53.1]} 5...
Bxc3+ {[%clk 0:02:49.5]} 6. Qxc3 {[%clk 0:02:54]} 6... Nbd7 {[%clk 0:02:49.3]}
7. Nf3 {[%clk 0:02:51.3]} 7... b6 {[%clk 0:02:49.4]} 8. g3 {[%clk 0:02:51.1]}
8... Bb7 {[%clk 0:02:49.6]} 9. Bg2 {[%clk 0:02:51]} 9... O-O {[%clk 0:02:50.1]}
10. O-O {[%clk 0:02:47.8]} 10... c5 {[%clk 0:02:43.1]} 11. b4 {[%clk 0:02:45.2]}
11... cxd4 {[%clk 0:02:31.4]} 12. Qxd4 {[%clk 0:02:42.9]} 12... Qc7 {[%clk
0:02:30.6]} 13. Bb2 {[%clk 0:02:39.4]} 13... Rac8 {[%clk 0:02:27.7]} 14. Rac1
{[%clk 0:02:37.2]} 14... Rfd8 {[%clk 0:02:23.5]} 15. Rfd1 {[%clk 0:02:36]} 15...
Qb8 {[%clk 0:02:09.8]} 16. Qxd6 {[%clk 0:02:34.7]} 16... Qa8 {[%clk 0:02:05.4]}
17. Qf4 {[%clk 0:02:30.2]} 17... h6 {[%clk 0:01:52]} 18. h4 {[%clk 0:02:25.2]}
18... e5 {[%clk 0:01:32.3]} 19. Bxe5 {[%clk 0:02:22.5]} 19... Nxe5 {[%clk
0:01:32.1]} 20. Qxe5 {[%clk 0:02:23.4]} 20... Re8 {[%clk 0:01:28.7]} 21. Qb2
{[%clk 0:02:22.1]} 21... Ne4 {[%clk 0:01:14.6]} 22. Nd4 {[%clk 0:02:05.9]} 22...
Rcd8 {[%clk 0:01:03]} 23. Nf5 {[%clk 0:02:05.5]} 23... f6 {[%clk 0:00:59.6]} 24.
Bf3 {[%clk 0:01:53.6]} 24... Qc8 {[%clk 0:00:50.6]} 25. Rxd8 {[%clk 0:01:50.6]}
25... Qxd8 {[%clk 0:00:47.6]} 26. c5 {[%clk 0:01:47.3]} 26... Re5 {[%clk
0:00:36.1]} 27. c6 {[%clk 0:01:34.6]} 27... Bc8 {[%clk 0:00:29.9]} 28. c7 {[%clk
0:01:30]} 28... Qe8 {[%clk 0:00:19]} 29. Bxe4 {[%clk 0:01:29.1]} 29... Rxe4
{[%clk 0:00:16.3]} 30. Nd6 {[%clk 0:01:29.5]} 30... Rxe2 {[%clk 0:00:16.5]} 31.
Nxe8 {[%clk 0:01:21.5]} 31... Rxb2 {[%clk 0:00:16.4]} 32. Nd6 {[%clk 0:01:22.1]}
1-0